{"text_format":"2","workbook":"xlsx","n_sheets":2,"sheets":["Sheet1","Foglio1"],"not_rendered":{"charts":0,"images":0,"macros":0,"external_links":0,"defined_names":2,"comments":0,"pivot_tables":0},"unopened":[],"bounds":{"document_bytes":16777216,"sheet_cells":100000,"run_cost":"one","rows_first":2000,"rows_last":500,"rows_between":2000,"halvings":0,"cell_chars":16384,"cell_head_chars":4096},"cells_cut":0,"cells_raw":0,"read":"whole","date_system":"1900"}

{"sheet":"Sheet1","index":0,"n_rows":44,"n_cols":19,"rows_kept":44,"cut":false,"hidden":false,"merged":[[37,0,37,18],[38,0,38,18],[39,0,39,18],[40,0,40,18],[41,0,41,18],[42,0,42,18],[43,0,43,18],[0,15,1,15],[0,16,1,16],[0,17,1,17],[0,18,1,18],[0,0,1,0],[0,1,1,1],[0,3,1,3],[0,4,1,4],[0,5,1,5],[0,14,1,14],[0,2,1,2],[0,9,1,9],[0,11,0,13],[0,6,1,6],[0,8,1,8],[0,7,1,7],[0,10,1,10]]}
["DIPARTIMENTO EROGANTE","CORSO DI STUDIO","TIPOLOGIA DEL CORSO","CURRICULUM","ANNO","SEMESTRE","MODULO DI INSEGNAMENTO (UD)","UD_SSD","PARTIZIONE","TAF","UD_CFU","TIP. DIDATTICA (ORE)",null,null,"TOTALE ORE DOCENTE","IMPORTO ORARIO LORDO AL NETTO DEGLI ONERI RIFLESSI","LORDO BENEFICIARIO AL NETTO DEGLI ONERI RIFLESSI","La spesa andrà a gravare sui fondi del Dipartimento di","note"]
[{"$nulls":11},"LEZ","ESE\nTIR","LAB"]
["DIPARTIMENTO DI CHIMICA","SCIENZA E TECNOLOGIE DEI MATERIALI (D.M.270/04)","MAG","Scientifico",1,1,"CRESCITA E CARATTERIZZAZIONE DI DISPOSITIVI A SEMICONDUTTORE","FIS/03",null,"B",6,32,0,30,62,25,{"$f":"O3*P3","v":1550},"Chimica"]
["DIPARTIMENTO DI CHIMICA","CHIMICA","TRI",null,1,1,"LINGUA INGLESE","L-LIN/12",null,"E",3,0,45,0,45,25,{"$f":"O4*P4","v":1125},"Chimica"]
["DIPARTIMENTO DI CHIMICA","SCIENZE CHIMICHE","MAG",null,2,1,"GESTIONE DEI RIFIUTI E SITI CONTAMINATI","CHIM/03",null,"C",5,40,0,0,40,25,1000,"Chimica","verrà attivato solo se richiesto da un numero congruo di studenti"]
["DIPARTIMENTO DI CHIMICA","SCIENZE AMBIENTALI ","TRI",null,1,1,"INFORMATICA","INF/01",null,"F",4,24,15,0,39,25,975,"Chimica"]
["DIPARTIMENTO DI CHIMICA","SCIENZE AMBIENTALI ","TRI",null,1,2,"LABORATORIO DI ABILITÀ LINGUISTICHE (INGLESE)","L-LIN/12",null,"E",4,16,30,0,46,25,1150,"Chimica"]
["DIPARTIMENTO DI INFORMATICA","INFORMATICA (D.M.270/04)","TRI","COMUNE",1,1,"MATEMATICA DISCRETA ","MAT/03","AL","A",9,56,30,0,86,25,2150,"Informatica"]
["DIPARTIMENTO DI INFORMATICA","INFORMATICA E COMUNICAZIONE DIGITALE - SEDE DI TARANTO (D.M.270/04)","TRI","Comune",2,1,"STATISTICA MATEMATICA","MAT/06",null,"C",6,32,30,0,62,25,1550,"Informatica"]
["DIPARTIMENTO DI INFORMATICA","INFORMATICA E COMUNICAZIONE DIGITALE - SEDE DI TARANTO (D.M.270/04)","TRI","Comune",3,1,"RETI DI CALCOLATORI E COMUNICAZIONE DIGITALE","INF/01",null,"B",6,32,30,0,62,25,1550,"Informatica"]
["DIPARTIMENTO DI INFORMATICA","COMPUTER SCIENCE (D.M. 270/04)","MAG","Comune",2,2,"ADVANCED SCIENTIFIC ENGLISH","L-LIN/12",null,"F",3,24,0,0,24,25,600,"Informatica"]
["DIPARTIMENTO DI INFORMATICA","SICUREZZA INFORMATICA (D.M. 270/04) - SEDE DI TARANTO","MAG","Comune",1,1,"ORGANIZZAZIONE AZIENDALE (CORSO IN E-LEARNING)","SECS-P/10",null,"B",6,48,0,0,"24*",25,{"$f":"24*P12","v":600},"Informatica","CORSO IN E-LEARNING\n* vedi Avviso di Vacanza"]
["DIPARTIMENTO DI INFORMATICA","SICUREZZA INFORMATICA (D.M. 270/04) - SEDE DI TARANTO","MAG","Comune",1,1,"CRITTOGRAFIA","INF/01",null,"C",6,32,30,0,62,25,1550,"Informatica"]
["DIPARTIMENTO DI INFORMATICA","SICUREZZA INFORMATICA (D.M. 270/04) - SEDE DI TARANTO","MAG","Comune",1,1,"LINGUA INGLESE","L-LIN/12",null,"F",3,24,0,0,24,25,600,"Informatica"]
["DIPARTIMENTO DI INFORMATICA","SICUREZZA INFORMATICA (D.M. 270/04) - SEDE DI TARANTO","MAG","Comune",1,2,"TRATTAMENTO DEI DATI SENSIBILI (CORSO IN E-LEARNING)","IUS/04",null,"B",9,72,0,0,"36*",25,{"$f":"36*P15","v":900},"Informatica","CORSO IN E-LEARNING\n* vedi Avviso di Vacanza"]
["DIPARTIMENTO DI INFORMATICA","DATA SCIENCE (D.M.270/04)","MAG","Comune",1,1,"TRATTAMENTO DEI DATI SENSIBILI ","IUS/01",null,"B",6,48,0,0,48,25,1200,"Informatica"]
["DIPARTIMENTO DI INFORMATICA","DATA SCIENCE (D.M.270/04)","MAG","Comune",1,1,"INGLESE PROFESSIONALE PER LA DATA SCIENCE","L-LIN/12",null,"F",3,24,0,0,24,25,600,"Informatica"]
["DIPARTIMENTO DI INFORMATICA","DATA SCIENCE (D.M.270/04)","MAG","Comune",2,1,"MODELLI ECONOMICI PER L'INNOVAZIONE GUIDATA DEI DATI","SECS-P/08",null,"B",6,48,0,0,48,25,1200,"Informatica"]
["DIPARTIMENTO DI MATEMATICA","Matematica","TRI",null,1,2,"LINGUA INGLESE I","L-LIN/12",null,"E",3,24,0,null,{"$f":"SUM(L19:N19)","v":24},25,600,"Matematica"]
["DIPARTIMENTO DI MATEMATICA","Matematica","MAG",null,1,2,"LINGUA INGLESE II","L-LIN/12",null,"F",3,24,0,0,24,25,600,"Matematica"]
["DIPARTIMENTO DI MATEMATICA","Matematica","MAG","matematica applicata e supporto alla finanza",2,2,"METODI ANALITICI IN FINANZA","MAT/05",null,"b",7,52,8,0,60,25,1500,"Matematica"]
["DIPARTIMENTO DI MATEMATICA","Matematica","MAG",null,5,1,"ISTITUZIONI DI ECONOMIA MATEMATICA","SECS-P/05",null,"D",7,52,8,0,60,25,1500,"Matematica"]
["DIPARTIMENTO DI SCIENZE DELLA TERRA E GEOAMBIENTALI","CONSERVAZIONE E RESTAURO DEI BENI CULTURALI","CU5","PFP1 Materiali Lapidei e derivati; superfici decorate dell'architettura",1,1," STORIA E TECNICHE DI RESTAURO I – MATERIALI LAPIDEI + TIROCINIO I - MOD. 1","NN",null,"F",9,null,225,null,225,25,5625,"Scienze della Terra e Geoambientali","per questa disciplina leggere la nota in calce alla tabella ed allegare il Modello F pena esclusione "]
["DIPARTIMENTO DI SCIENZE DELLA TERRA E GEOAMBIENTALI","CONSERVAZIONE E RESTAURO DEI BENI CULTURALI","CU5","PFP1 Materiali Lapidei e derivati; superfici decorate dell'architettura",1,2," STORIA E TECNICHE DI RESTAURO I – MATERIALI LAPIDEI + TIROCINIO I - MOD. TIROCINIO","NN",null,"F",6,null,150,null,150,25,3750,"Scienze della Terra e Geoambientali","per questa disciplina leggere la nota in calce alla tabella ed allegare il Modello F pena esclusione "]
["DIPARTIMENTO DI SCIENZE DELLA TERRA E GEOAMBIENTALI","CONSERVAZIONE E RESTAURO DEI BENI CULTURALI","CU5","PFP4 Materiali e manufatti ceramici e vitrei; Materiali e manufatti in metallo e leghe",1,1," STORIA E TECNICHE DI RESTAURO I – CERAMICHE + TIROCINIO I - MOD. 1","NN",null,"F",9,null,225,null,{"$f":"SUM(L25:N25)","v":225},25,{"$f":"O25*P25","v":5625},"Scienze della Terra e Geoambientali","per questa disciplina leggere la nota in calce alla tabella ed allegare il Modello F pena esclusione "]
["DIPARTIMENTO DI SCIENZE DELLA TERRA E GEOAMBIENTALI","CONSERVAZIONE E RESTAURO DEI BENI CULTURALI","CU5","PFP4 Materiali e manufatti ceramici e vitrei; Materiali e manufatti in metallo e leghe",1,2," STORIA E TECNICHE DI RESTAURO I – CERAMICHE + TIROCINIO I - MOD. TIROCINIO","NN",null,"F",6,null,150,null,{"$f":"SUM(L26:N26)","v":150},25,{"$f":"O26*P26","v":3750},"Scienze della Terra e Geoambientali","per questa disciplina leggere la nota in calce alla tabella ed allegare il Modello F pena esclusione "]
["DIPARTIMENTO DI SCIENZE DELLA TERRA E GEOAMBIENTALI","CONSERVAZIONE E RESTAURO DEI BENI CULTURALI","CU5","PFP1 Materiali Lapidei e derivati; superfici decorate dell'architettura",2,1," STORIA E TECNICHE DI RESTAURO II – MATERIALI LAPIDEI + TIROCINIO II - MOD. 1","NN",null,"F",12,null,300,null,300,25,7500,"Scienze della Terra e Geoambientali","per questa disciplina leggere la nota in calce alla tabella ed allegare il Modello F pena esclusione "]
["DIPARTIMENTO DI SCIENZE DELLA TERRA E GEOAMBIENTALI","CONSERVAZIONE E RESTAURO DEI BENI CULTURALI","CU5","PFP1 Materiali Lapidei e derivati; superfici decorate dell'architettura",2,2," STORIA E TECNICHE DI RESTAURO II – MATERIALI LAPIDEI + TIROCINIO II - MOD. TIROCINIO","NN",null,"F",6,null,150,null,150,25,3750,"Scienze della Terra e Geoambientali","per questa disciplina leggere la nota in calce alla tabella ed allegare il Modello F pena esclusione "]
["DIPARTIMENTO DI SCIENZE DELLA TERRA E GEOAMBIENTALI","CONSERVAZIONE E RESTAURO DEI BENI CULTURALI","CU5","PFP1 Materiali Lapidei e derivati; superfici decorate dell'architettura",3,1," STORIA E TECNICHE DI RESTAURO III – DIPINTI MURALI + TIROCINIO III - MOD. 1","NN",null,"F",12,null,300,null,300,25,7500,"Scienze della Terra e Geoambientali","per questa disciplina leggere la nota in calce alla tabella ed allegare il Modello F pena esclusione "]
["DIPARTIMENTO DI SCIENZE DELLA TERRA E GEOAMBIENTALI","CONSERVAZIONE E RESTAURO DEI BENI CULTURALI","CU5","PFP1 Materiali Lapidei e derivati; superfici decorate dell'architettura",3,2," STORIA E TECNICHE DI RESTAURO III –  DIPINTI MURALI + TIROCINIO III - MOD. TIROCINIO","NN",null,"F",6,null,150,null,150,25,3750,"Scienze della Terra e Geoambientali","per questa disciplina leggere la nota in calce alla tabella ed allegare il Modello F pena esclusione "]
["DIPARTIMENTO DI SCIENZE DELLA TERRA E GEOAMBIENTALI","CONSERVAZIONE E RESTAURO DEI BENI CULTURALI","CU5","PFP1 Materiali Lapidei e derivati; superfici decorate dell'architettura",4,1," STORIA E TECNICHE DI RESTAURO IV – DIPINTI MURALI + TIROCINIO IV - MOD. 1","NN",null,"F",12,null,300,null,300,25,7500,"Scienze della Terra e Geoambientali","per questa disciplina leggere la nota in calce alla tabella ed allegare il Modello F pena esclusione "]
["DIPARTIMENTO DI SCIENZE DELLA TERRA E GEOAMBIENTALI","CONSERVAZIONE E RESTAURO DEI BENI CULTURALI","CU5","PFP1 Materiali Lapidei e derivati; superfici decorate dell'architettura",4,2," STORIA E TECNICHE DI RESTAURO IV –  DIPINTI MURALI + TIROCINIO IV - MOD. TIROCINIO","NN",null,"F",6,null,150,null,150,25,3750,"Scienze della Terra e Geoambientali","per questa disciplina leggere la nota in calce alla tabella ed allegare il Modello F pena esclusione "]
["DIPARTIMENTO DI SCIENZE DELLA TERRA E GEOAMBIENTALI","CONSERVAZIONE E RESTAURO DEI BENI CULTURALI","CU5","PFP1 Materiali Lapidei e derivati; superfici decorate dell'architettura",5,1," STORIA E TECNICHE DI RESTAURO V – MOSAICI+ TIROCINIO V - MOD. 1","NN",null,"F",12,null,300,null,300,25,7500,"Scienze della Terra e Geoambientali","per questa disciplina leggere la nota in calce alla tabella ed allegare il Modello F pena esclusione "]
["DIPARTIMENTO DI SCIENZE DELLA TERRA E GEOAMBIENTALI","CONSERVAZIONE E RESTAURO DEI BENI CULTURALI","CU5","PFP1 Materiali Lapidei e derivati; superfici decorate dell'architettura",5,2," STORIA E TECNICHE DI RESTAURO V – MOSAICI + TIROCINIO V - MOD. TIROCINIO","NN",null,"F",9,null,225,null,225,25,5625,"Scienze della Terra e Geoambientali","per questa disciplina leggere la nota in calce alla tabella ed allegare il Modello F pena esclusione "]
["DIPARTIMENTO INTERATENEO DI FISICA","FISICA","TRI","Comune",2,1,"LINGUA INGLESE","L-LIN/12",null,"E-F",6,32,30,0,62,25,1550,"Fisica"]
["DIPARTIMENTO INTERATENEO DI FISICA","SCIENZA E TECNOLOGIA DEI MATERIALI","TRI","Comune",1,2,"LINGUA INGLESE","L-LIN/12",null,"E",3,0,45,0,45,25,1125,"Fisica"]
["DIPARTIMENTO INTERATENEO DI FISICA","PHYSICS","MAG","Theoretical Physics  AND complex systems",1,2,"PROBABILISTIC METHODS OF PHYSICS","MAT/07",null,null,6,40,15,0,55,25,1375,"Fisica"]
["Note relative ai requisiti e priorità nell'assegnazione per le discipline del Corso di Laurea Magistrale a Ciclo Unico in CONSERVAZIONE E RESTAURO DEI BENI CULTURALI  che riportano nell'ultima colonna della tabella il richiamo alle presenti istruzioni"]
["* Per l'insegnamento di Storia e tecniche del restauro I mat. Lapidei + tirocinio I (Mod.1) e (Mod. Tirocinio) verrà data priorità ai dipendenti MIBAC e a coloro che sono in possesso dei requisiti previsti dall'art. 3 p.1-2 del D.M. 87/2009 e cioè i docenti delle discipline tecniche di restauro teorico e di laboratorio o di cantiere scelti tra i RESTAURATORI DI BENI CULTURALI (art. 182 commi 1, 1-bis, 1-ter, 1-quater, 1-quinquies e art. 2 del Codice dei Beni Culturali) che siano in possesso di uno dei seguenti requisiti: \nA) aver svolto attività di DOCENZA PER ALMENO UN BIENNIO CONTINUATIVO presso le Scuole Alta Formazione e Studio ex. Art. 9 D.Lgs. 368/98, nonché presso le Università ed aver altresì maturato un'esperienza professionale di restauro, connotata dalla responsabilità diretta nella gestione tecnica degli interventi, di almeno quattro anni;  \nB) aver svolto attività di DOCENZA PER ALMENO UN TRIENNIO CONTINUATIVO presso corsi di restauro attivati dalle scuole di restauro regionali, ovvero presso corsi di restauro attivati dalle accademie di belle arti, della durata di almeno tre anni, ed aver altresì maturato un'esperienza professionale di restauro, connotata dalla responsabilità diretta nella gestione tecnica degli interventi, di almeno cinque anni; \nC) aver maturato un'esperienza professionale di restauro, connotata dalla responsabilità diretta degli interventi, di almeno dodici anni;\nD)/// \nE) essere docenti delle accademie di belle arti afferenti ai settori artistico-disciplinari ABPR 24,25,26,27,28 (DM 482/08); \nF) essere diplomati all'estero e trovarsi in una delle situazioni sopra citate, ed aver altresì ottenuto il riconoscimento dell'equipollenza del titolo, dell'istituzione e dell'attività professionale.\nObiettivi insegnamento: Litoidi naturali: generalità con particolare attenzione a quelli presenti sul territorio.Tecnologie per l'estrazione, trasporto, lavorazione in cava; materiali lapidei in opera: storia delle tecniche esecutive e costruttive, storia del restauro e della trasformazione dell'opera (riuso), cause e morfologie del degrado.  Materiali lapidei  per statuaria e decorazione. Esame e valutazione dello stato di conservazione generale del manufatto, delle tematiche di degrado in atto e relativa rappresentazione grafica. Disegno per il restauro. Metodi e materiali dei trattamenti conservativi e di restauro (pulitura, trattamenti biocidi, consolidamento, integrazione, protezione). Tecniche di indagine per controlli non distruttivi (es: tecniche di ripresa nel campo dell'infrarosso). Indagini Normal. Indagini diagnostiche distruttive.                                                                                                                                                                                                                                                                                               I partecipanti dovranno presentare la Dichiarazione di cui all'allegato F.\n"]
["* Per l'insegnamento di Storia e tecniche del restauro I ceramiche + tirocinio I  (Mod.1) e (Mod. Tirocinio)verrà data priorità ai dipendenti MIBAC e a coloro che sono in possesso dei requisiti previsti dall'art. 3 p.1-2 del D.M. 87/2009 e cioè i docenti delle discipline tecniche di restauro teorico e di laboratorio o di cantiere scelti tra i RESTAURATORI DI BENI CULTURALI (art. 182 commi 1, 1-bis, 1-ter, 1-quater, 1-quinquies e art. 2 del Codice dei Beni Culturali) che siano in possesso di uno dei seguenti requisiti: \nA) aver svolto attività di DOCENZA PER ALMENO UN BIENNIO CONTINUATIVO presso le Scuole Alta Formazione e Studio ex. Art. 9 D.Lgs. 368/98, nonché presso le Università ed aver altresì maturato un'esperienza professionale di restauro, connotata dalla responsabilità diretta nella gestione tecnica degli interventi, di almeno quattro anni;  \nB) aver svolto attività di DOCENZA PER ALMENO UN TRIENNIO CONTINUATIVO presso corsi di restauro attivati dalle scuole di restauro regionali, ovvero presso corsi di restauro attivati dalle accademie di belle arti, della durata di almeno tre anni, ed aver altresì maturato un'esperienza professionale di restauro, connotata dalla responsabilità diretta nella gestione tecnica degli interventi, di almeno cinque anni; \nC) aver maturato un'esperienza professionale di restauro, connotata dalla responsabilità diretta degli interventi, di almeno dodici anni;\nD)/// \nE) essere docenti delle accademie di belle arti afferenti ai settori artistico-disciplinari ABPR 24,25,26,27,28 (DM 482/08); \nF) essere diplomati all'estero e trovarsi in una delle situazioni sopra citate, ed aver altresì ottenuto il riconoscimento dell'equipollenza del titolo, dell'istituzione e dell'attività professionale.\nObiettivi insegnamento: Ceramica: il materiale costituente ed esempi di produzione. Tecniche produttive e problemi di realizzazione (formatura, essiccazione,  cottura). Tecniche produttive (fornaci, attrezzature ed utensili). Classificazione (terracotta, laterizi, refrattari, faenze, terraglie, gres, porcellane). Rivestimenti superficiali vetrosi e argillosi. Valutazione dello stato di conservazione: il degrado, cause, conseguenze (strettamente collegate con la diagnostica); conoscenza degli strumenti e dei materiali di cui si dispone per poterlo affrontare. Restauro, approccio generale e fasi di intervento: fase di pulitura. \nI partecipanti dovranno presentare la Dichiarazione di cui all'allegato F.\n\n\n"]
["* Per l'insegnamento di Storia e tecniche del restauro II mat. Lapidei + tirocinio e II (Mod.1) e (Mod. Tirocinio) verrà data priorità ai dipendenti MIBAC e a coloro che sono in possesso dei requisiti previsti dall'art. 3 p.1-2 del D.M. 87/2009 e cioè i docenti delle discipline tecniche di restauro teorico e di laboratorio o di cantiere scelti tra i RESTAURATORI DI BENI CULTURALI (art. 182 commi 1, 1-bis, 1-ter, 1-quater, 1-quinquies e art. 2 del Codice dei Beni Culturali) che siano in possesso di uno dei seguenti requisiti: \nA) aver svolto attività di DOCENZA PER ALMENO UN BIENNIO CONTINUATIVO presso le Scuole Alta Formazione e Studio ex. Art. 9 D.Lgs. 368/98, nonché presso le Università ed aver altresì maturato un'esperienza professionale di restauro, connotata dalla responsabilità diretta nella gestione tecnica degli interventi, di almeno quattro anni;  \nB) aver svolto attività di DOCENZA PER ALMENO UN TRIENNIO CONTINUATIVO presso corsi di restauro attivati dalle scuole di restauro regionali, ovvero presso corsi di restauro attivati dalle accademie di belle arti, della durata di almeno tre anni, ed aver altresì maturato un'esperienza professionale di restauro, connotata dalla responsabilità diretta nella gestione tecnica degli interventi, di almeno cinque anni; \nC) aver maturato un'esperienza professionale di restauro, connotata dalla responsabilità diretta degli interventi, di almeno dodici anni;\nD)/// \nE) essere docenti delle accademie di belle arti afferenti ai settori artistico-disciplinari ABPR 24,25,26,27,28 (DM 482/08); \nF) essere diplomati all'estero e trovarsi in una delle situazioni sopra citate, ed aver altresì ottenuto il riconoscimento dell'equipollenza del titolo, dell'istituzione e dell'attività professionale.\nObiettivi insegnamento: Litoidi naturali: tecniche di esecuzione dei manufatti realizzati con litoidi naturali e artificiali e degli stucchi in opera; fenomenologia del deterioramento dei manufatti; metodi e materiali dei trattamenti conservativi e di restauro (pulitura, trattamenti biocidi, consolidamento, integrazione, protezione). Cenni su metodologie di intervento su sistemi monumentali integrati (fontane, facciate decorate). Tecnologie applicate ai materiali lapidei (es. sabbiature e micro-sabbiature, puliture laser, ultrasuoni). Illustrazione di casi studio e restauri esemplari; trattamento delle superfici. Progettazione e realizzazione di un intervento di restauro; stesura di relazione dimostrativa.                                                                                                                                             \nI partecipanti dovranno presentare la Dichiarazione di cui all'allegato F\n\n"]
["* Per l'insegnamento di Storia e tecniche del restauro III Dip. Murali + tirocinio III (Mod.1) e (Mod. Tirocinio) verrà data priorità ai dipendenti MIBAC e a coloro che sono in possesso dei requisiti previsti dall'art. 3 p.1-2 del D.M. 87/2009 e cioè i docenti delle discipline tecniche di restauro teorico e di laboratorio o di cantiere scelti tra i RESTAURATORI DI BENI CULTURALI (art. 182 commi 1, 1-bis, 1-ter, 1-quater, 1-quinquies e art. 2 del Codice dei Beni Culturali) che siano in possesso di uno dei seguenti requisiti: \nA) aver svolto attività di DOCENZA PER ALMENO UN BIENNIO CONTINUATIVO presso le Scuole Alta Formazione e Studio ex. Art. 9 D.Lgs. 368/98, nonché presso le Università ed aver altresì maturato un'esperienza professionale di restauro, connotata dalla responsabilità diretta nella gestione tecnica degli interventi, di almeno quattro anni;  \nB) aver svolto attività di DOCENZA PER ALMENO UN TRIENNIO CONTINUATIVO presso corsi di restauro attivati dalle scuole di restauro regionali, ovvero presso corsi di restauro attivati dalle accademie di belle arti, della durata di almeno tre anni, ed aver altresì maturato un'esperienza professionale di restauro, connotata dalla responsabilità diretta nella gestione tecnica degli interventi, di almeno cinque anni; \nC) aver maturato un'esperienza professionale di restauro, connotata dalla responsabilità diretta degli interventi, di almeno dodici anni;\nD)/// \nE) essere docenti delle accademie di belle arti afferenti ai settori artistico-disciplinari ABPR 24,25,26,27,28 (DM 482/08); \nF) essere diplomati all'estero e trovarsi in una delle situazioni sopra citate, ed aver altresì ottenuto il riconoscimento dell'equipollenza del titolo, dell'istituzione e dell'attività professionale.\nObiettivi insegnamento: Tecniche di esecuzione di Affreschi, Tempere e Dipinti murali a secco; tecniche di indagine per controlli non distruttive e microdistruttive. Fenomenologia del deterioramento dei manufatti; metodi e materiali dei trattamenti conservativi e di restauro (pulitura, trattamenti biocidi, consolidamento, integrazione, protezione).                                                                                                  \nI partecipanti dovranno presentare la Dichiarazione di cui all'allegato F.\n"]
["* Per l'insegnamento di Storia e tecniche del restauro IV dipinti murali + tirocinio IV  (Mod.1) e (Mod. Tirocinio) verrà data priorità ai dipendenti MIBAC e a coloro che sono in possesso dei requisiti previsti dall'art. 3 p.1-2 del D.M. 87/2009 e cioè i docenti delle discipline tecniche di restauro teorico e di laboratorio o di cantiere scelti tra i RESTAURATORI DI BENI CULTURALI (art. 182 commi 1, 1-bis, 1-ter, 1-quater, 1-quinquies e art. 2 del Codice dei Beni Culturali) che siano in possesso di uno dei seguenti requisiti: \nA) aver svolto attività di DOCENZA PER ALMENO UN BIENNIO CONTINUATIVO presso le Scuole Alta Formazione e Studio ex. Art. 9 D.Lgs. 368/98, nonché presso le Università ed aver altresì maturato un'esperienza professionale di restauro, connotata dalla responsabilità diretta nella gestione tecnica degli interventi, di almeno quattro anni;  \nB) aver svolto attività di DOCENZA PER ALMENO UN TRIENNIO CONTINUATIVO presso corsi di restauro attivati dalle scuole di restauro regionali, ovvero presso corsi di restauro attivati dalle accademie di belle arti, della durata di almeno tre anni, ed aver altresì maturato un'esperienza professionale di restauro, connotata dalla responsabilità diretta nella gestione tecnica degli interventi, di almeno cinque anni; \nC) aver maturato un'esperienza professionale di restauro, connotata dalla responsabilità diretta degli interventi, di almeno dodici anni;\nD)/// \nE) essere docenti delle accademie di belle arti afferenti ai settori artistico-disciplinari ABPR 24,25,26,27,28 (DM 482/08); \nF) essere diplomati all'estero e trovarsi in una delle situazioni sopra citate, ed aver altresì ottenuto il riconoscimento dell'equipollenza del titolo, dell'istituzione e dell'attività professionale.\nObiettivi insegnamento: Trattamento delle superfici dipinte dei monumenti storici ed archeologici. Tecniche di reintegrazione (tratteggio, selezione, astrazione cromatica); illustrazione dicasi studio e restauri esemplari.Progettazione e realizzazione di un intervento di restauro; stesura di  relazione dimostrativa.\nI partecipanti dovranno presentare la Dichiarazione di cui all'allegato F.\n\n\n"]
["* Per l'insegnamento di Storia e tecniche del restauro V Mosaici + tirocinio V  (Mod.1) e (Mod. Tirocinio) verrà data priorità ai dipendenti MIBAC e a coloro che sono in possesso dei requisiti previsti dall'art. 3 p.1-2 del D.M. 87/2009 e cioè i docenti delle discipline tecniche di restauro teorico e di laboratorio o di cantiere scelti tra i RESTAURATORI DI BENI CULTURALI (art. 182 commi 1, 1-bis, 1-ter, 1-quater, 1-quinquies e art. 2 del Codice dei Beni Culturali) che siano in possesso di uno dei seguenti requisiti: \nA) aver svolto attività di DOCENZA PER ALMENO UN BIENNIO CONTINUATIVO presso le Scuole Alta Formazione e Studio ex. Art. 9 D.Lgs. 368/98, nonché presso le Università ed aver altresì maturato un'esperienza professionale di restauro, connotata dalla responsabilità diretta nella gestione tecnica degli interventi, di almeno quattro anni;  \nB) aver svolto attività di DOCENZA PER ALMENO UN TRIENNIO CONTINUATIVO presso corsi di restauro attivati dalle scuole di restauro regionali, ovvero presso corsi di restauro attivati dalle accademie di belle arti, della durata di almeno tre anni, ed aver altresì maturato un'esperienza professionale di restauro, connotata dalla responsabilità diretta nella gestione tecnica degli interventi, di almeno cinque anni; \nC) aver maturato un'esperienza professionale di restauro, connotata dalla responsabilità diretta degli interventi, di almeno dodici anni;\nD)/// \nE) essere docenti delle accademie di belle arti afferenti ai settori artistico-disciplinari ABPR 24,25,26,27,28 (DM 482/08); \nF) essere diplomati all'estero e trovarsi in una delle situazioni sopra citate, ed aver altresì ottenuto il riconoscimento dell'equipollenza del titolo, dell'istituzione e dell'attività professionale.\nObiettivi insegnamento:Tecniche di esecuzione dei manufatti;  fenomenologia del deterioramento dei manufatti;  metodi e materiali dei trattamenti conservativi e di restauro. Illustrazione di casi studio e restauri esemplari. Documentazione   fotografica.   Progettazione   e   realizzazione   di   un intervento di restauro; stesura di relazione dimostrativa.\nI partecipanti dovranno presentare la Dichiarazione di cui all'allegato F."]

{"sheet":"Foglio1","index":1,"n_rows":27,"n_cols":21,"rows_kept":27,"cut":false,"hidden":false,"merged":[]}
[]
[]
[]
[]
[4,8753,"PHYSICS",2,1,"DEEP LEARNING AND GENERATIVE MODELS","FIS/07",null,"D",3,16,15,null,31,2,1,null,16,30,0,46]
[6,8753,"PHYSICS",2,1,"LABORATORY OF PLASMA PHYSICS","FIS/03",null,"D",3,16,null,15,31,2,null,1,16,30,15,61]
[14,8753,"PHYSICS",2,1,"EARTH OBSERVATION AND GIS DATA ANALYSIS","FIS/06",null,"D",3,16,15,null,31,2,1,null,16,30,0,46]
[15,8753,"PHYSICS",2,1,"SPACE BORN RADAR REMOTE SENSING","FIS/06",null,"D",3,16,15,null,31,2,1,null,16,30,0,46]
[16,8753,"PHYSICS",2,1,"RARE EVENTS PHYSICS","FIS/04",null,"D",3,16,null,15,31,2,"  ",1,16,30,15,61]
[17,8753,"PHYSICS",2,1,"HEALTH TECHNOLOGIES","FIS/07",null,"D",3,16,null,15,31,2,null,1,16,30,15,61]
[19,8753,"PHYSICS",1,2,"ADVANCED PROGRAMMING IN C++","FIS/01",null,"D",3,16,null,15,31,2,null,1,16,30,15,61]
[22,8753,"PHYSICS",1,2,"AI PROGRAMMING IN PHYSICS","FIS/01",null,"D",3,16,null,15,31,2,null,1,16,30,15,61]
[23,8753,"PHYSICS",1,2,"RANDON MATRICES","MAT/07",null,"D",3,16,15,null,31,2,1,null,16,30,0,46]
[24,8753,"PHYSICS",1,2,"NON EQUILIBRIUM PHENOMENA","FIS/02",null,"D",3,16,15,null,31,2,1,null,16,30,0,46]
[25,8753,"PHYSICS",1,2,"NUCLEAR FUSION TECHNOLOGIES","FIS/04",null,"D",3,16,null,15,31,2,null,1,16,30,15,61]
[3,8753,"PHYSICS",2,1,"COSMOLOGY","FIS/02",null,"D",3,16,15,null,31,2,1,null,16,30,0,46]
[5,8753,"PHYSICS",2,1,"PHYSICAL APPLICATIONS OF GROUP THEORY","FIS/02",null,"D",3,16,15,null,31,2,1,null,16,30,0,46]
[7,8753,"PHYSICS",2,1,"DIDACTICS OF PHYSICS","FIS/08",null,"D",3,16,15,null,31,2,1,null,16,30,0,46]
[8,8753,"PHYSICS",2,1,"RELATIVISTIC KINEMATICS OF PARTICLE INTERACTIONS","FIS/04",null,"D",3,16,15,null,31,2,1,null,16,30,0,46]
[9,8753,"PHYSICS",2,1,"NEUTRINO PHYSICS","FIS/04",null,"D",3,16,15,null,31,2,1,null,16,30,0,46]
[10,8753,"PHYSICS",2,1,"COSMIC RAY PHYSICS","FIS/01",null,"D",3,16,15,null,31,2,1,null,16,30,0,46]
[11,8753,"PHYSICS",2,1,"MULTIMESSENGER ASTROPHYSICS","FIS/05",null,"D",3,16,15,null,31,2,1,null,16,30,0,46]
[12,8753,"PHYSICS",2,1,"THEORETICAL ASTROPARTICLE PHYSICS","FIS/02",null,"D",3,16,15,null,31,2,1,null,16,30,0,46]
[13,8753,"PHYSICS",2,1,"ADVANCED QUANTUM FIELD THEORY","FIS/02",null,"D",3,16,15,null,31,2,1,null,16,30,0,46]
[18,8753,"PHYSICS",1,2,"HEAVY ION PHYSICS","FIS/04",null,"D",3,16,15,null,31,2,1,null,16,30,0,46]
[20,8753,"PHYSICS",1,2,"TECHNOLOGIES FOR SPACE APPLICATIONS","FIS/01",null,"D",3,16,null,15,31,2,null,1,16,30,15,61]
[21,8753,"PHYSICS",1,2,"MOLECULAR DYNAMICS","FIS/07",null,"D",3,16,15,null,31,2,1,null,16,30,0,46]